bitfinex/quotes_BTCUSD_20240820
["timestamp","ask_amount","ask_price","bid_price","bid_amount"]
[1724138254516,2.9827301,60943.0,60942.0,0.006]
[1724138254838,1.28792382,60940.0,60939.0,0.0009086]
[1724138255063,1.42262382,60940.0,60939.0,0.0009086]
[1724138255496,1.420968,60940.0,60939.0,0.0009086]
[1724138255914,1.42362382,60940.0,60939.0,0.0009086]
[1724138256118,1.430968,60940.0,60939.0,0.0019086]
[1724138257183,1.429968,60940.0,60939.0,0.0019086]
[1724138257384,1.43662382,60940.0,60939.0,0.0019086]
[1724138260252,1.41362382,60940.0,60939.0,0.0019086]
[1724138260455,1.43662382,60940.0,60939.0,0.0019086]
[1724138262639,1.433968,60940.0,60939.0,0.0019086]
[1724138263059,1.434968,60940.0,60939.0,0.0019086]
[1724138265994,1.43662382,60940.0,60939.0,0.0019086]
[1724138266396,1.76481482,60940.0,60939.0,0.0019086]
[1724138267261,1.76381482,60940.0,60939.0,0.0019086]
[1724138267473,1.748159,60940.0,60939.0,0.0009086]
[1724138267674,1.75081482,60940.0,60939.0,0.0009086]
[1724138267889,1.75081482,60940.0,60939.0,0.0029086]
[1724138267890,1.76740529,60940.0,60939.0,0.0029086]
[1724138268096,1.76840529,60940.0,60939.0,0.0029086]
[1724138268408,1.86740529,60940.0,60939.0,0.0029086]
[1724138268608,1.86574947,60940.0,60939.0,0.0029086]
[1724138269124,1.86840529,60940.0,60939.0,0.0029086]
[1724138270324,1.86740529,60940.0,60939.0,0.0029086]
[1724138270571,1.86840529,60940.0,60939.0,0.0029086]
[1724138271408,1.86574947,60940.0,60939.0,0.0029086]
[1724138274229,1.86840529,60940.0,60939.0,0.0029086]
[1724138274430,1.86574947,60940.0,60939.0,0.0029086]
[1724138275195,1.86840529,60940.0,60939.0,0.0029086]
[1724138275399,1.86740529,60940.0,60939.0,0.0029086]
[1724138275604,1.86823129,60940.0,60939.0,0.0029086]
[1724138276334,1.86657547,60940.0,60939.0,0.0029086]
[1724138276539,1.86923129,60940.0,60939.0,0.0029086]
[1724138276880,1.86657547,60940.0,60939.0,0.0029086]
[1724138277225,1.62454182,60939.0,60938.0,0.0009086]
[1724138277394,1.74654182,60939.0,60938.0,0.0009086]
[1724138277627,1.744886,60939.0,60938.0,0.0009086]
[1724138278006,1.74654182,60939.0,60938.0,0.0009086]
[1724138278161,1.74754182,60939.0,60938.0,0.0009086]
[1724138278362,1.85924182,60939.0,60938.0,0.0009086]
[1724138278582,1.53104482,60939.0,60938.0,0.0009086]
[1724138278786,1.50804482,60939.0,60938.0,0.0009086]
[1724138279005,1.51804482,60939.0,60938.0,0.0019086]
[1724138279151,1.04484782,60939.0,60938.0,0.0019086]
[1724138279561,1.05484782,60939.0,60938.0,0.0029086]
[1724138279770,0.95484782,60939.0,60938.0,0.0029086]
[1724138280599,0.94484782,60939.0,60938.0,0.0019086]
[1724138281087,0.94484782,60939.0,60938.0,0.0029086]
[1724138281088,0.97384782,60939.0,60938.0,0.0029086]
[1724138281490,0.96384782,60939.0,60938.0,0.0019086]
[1724138281693,0.96294782,60939.0,60938.0,0.0019086]
[1724138281900,0.63475082,60939.0,60938.0,0.0019086]
[1724138282333,0.63475082,60939.0,60938.0,0.0029086]
[1724138282334,0.97194782,60939.0,60938.0,0.0029086]
[1724138282560,0.97194782,60939.0,60938.0,0.0009086]
[1724138282561,0.95694782,60939.0,60938.0,0.0009086]
[1724138282965,0.96694782,60939.0,60938.0,0.0019086]
[1724138285336,0.1117,60934.0,60933.0,0.0649]
[1724138285558,0.1347,60934.0,60933.0,0.0649]
[1724138285788,0.1347,60934.0,60933.0,0.308614]
[1724138286017,0.023,60934.0,60933.0,0.636843]
[1724138286263,0.001,60935.0,60934.0,0.164111]
[1724138286509,0.001,60935.0,60934.0,0.492334]
[1724138286707,0.001,60935.0,60934.0,0.572134]
[1724138286708,0.00265582,60935.0,60934.0,0.572134]
[1724138286917,0.023,60936.0,60935.0,0.164109]
[1724138288606,0.023,60936.0,60934.0,0.408023]
[1724138288815,0.003,60935.0,60934.0,0.574134]
[1724138289013,0.026,60935.0,60934.0,0.574134]
[1724138289222,0.023,60935.0,60934.0,0.572134]
[1724138289429,0.023,60936.0,60935.0,0.164107]
[1724138289631,0.027,60936.0,60934.0,0.0798]
[1724138289831,0.027,60936.0,60935.0,0.492327]
[1724138290458,0.023,60936.0,60935.0,0.968545]
[1724138290673,0.000826,60940.0,60939.0,0.640295]
[1724138290875,0.000826,60940.0,60939.0,0.968492]
[1724138291086,0.000826,60940.0,60939.0,1.296689]
[1724138291298,0.000826,60940.0,60939.0,1.29703246]
[1724138291889,0.000826,60940.0,60939.0,1.296689]
[1724138292220,0.000826,60940.0,60939.0,1.34614416]
[1724138292390,0.000826,60940.0,60939.0,0.968492]
[1724138292632,0.000826,60940.0,60935.0,0.11420649]
[1724138292633,0.002826,60940.0,60935.0,0.11420649]
[1724138292831,0.1117,60938.0,60937.0,0.164103]
[1724138293030,0.1117,60938.0,60935.0,0.164107]
[1724138293031,0.11117716,60938.0,60935.0,0.164107]
[1724138293241,0.11117716,60938.0,60934.0,0.0829]
[1724138293371,0.166922,60940.0,60935.0,0.328218]
[1724138293565,0.166922,60940.0,60935.0,0.820545]
[1724138293566,0.1117,60936.0,60935.0,0.820545]
[1724138293790,0.1117,60936.0,60935.0,0.823545]
[1724138293791,0.1347,60936.0,60935.0,0.823545]
[1724138294027,0.1347,60936.0,60935.0,0.495327]
[1724138295243,0.1347,60936.0,60935.0,0.492327]
[1724138295415,0.1347,60936.0,60935.0,0.493327]
[1724138295963,0.1347,60936.0,60935.0,0.492327]
[1724138296306,0.1347,60936.0,60935.0,0.497327]
[1724138296512,0.1357,60936.0,60935.0,0.506327]
[1724138297731,0.1357,60936.0,60935.0,0.896545]
[1724138297732,0.024,60936.0,60935.0,0.896545]
[1724138297933,0.001,60936.0,60935.0,0.979645]
[1724138299585,0.001,60936.0,60935.0,0.9805536]
[1724138301311,0.821532,60936.0,60935.0,0.0149086]
[1724138301508,0.276806,60936.0,60935.0,0.0771086]
[1724138301814,0.1127,60936.0,60935.0,0.2412176]
[1724138302017,0.1347,60936.0,60935.0,0.2322176]
[1724138302261,0.1347,60936.0,60935.0,0.0631086]
[1724138302453,0.1347,60936.0,60935.0,0.0691086]
[1724138302659,0.023,60936.0,60935.0,0.0711086]
[1724138302850,0.164103,60937.0,60935.0,0.0710686]
[1724138303024,0.164103,60937.0,60935.0,0.0650686]
[1724138303025,0.023,60936.0,60935.0,0.0650686]
[1724138303424,0.023,60936.0,60935.0,0.0710686]
[1724138303807,0.023,60936.0,60935.0,0.0690686]
[1724138304007,0.112526,60939.0,60936.0,0.164106]
[1724138304008,0.023,60937.0,60936.0,0.164106]
[1724138304262,0.023,60938.0,60936.0,0.164106]
[1724138304412,0.023,60938.0,60935.0,0.0700686]
[1724138304611,0.023,60938.0,60935.0,0.2341766]
[1724138304862,0.023,60938.0,60936.0,0.164106]
[1724138305272,0.023826,60939.0,60936.0,0.169106]
[1724138305485,0.000826,60939.0,60938.0,0.492303]
[1724138305683,0.000826,60939.0,60938.0,0.959605]
[1724138306093,0.000826,60939.0,60938.0,1.287807]
[1724138306503,0.002826,60939.0,60938.0,1.287807]
[1724138306701,0.000826,60939.0,60938.0,1.287807]
[1724138306906,0.000826,60939.0,60938.0,1.28815046]
[1724138307143,0.001826,60939.0,60938.0,1.297807]
[1724138307553,0.000826,60939.0,60938.0,1.287807]
[1724138307902,0.000826,60939.0,60938.0,1.28815046]
[1724138308645,0.000826,60939.0,60938.0,1.30215046]
[1724138308935,0.000826,60939.0,60938.0,1.301807]
[1724138309576,0.001826,60939.0,60938.0,1.320407]
[1724138309835,0.001826,60939.0,60938.0,1.648609]
[1724138310228,0.001826,60939.0,60938.0,1.68474186]
[1724138310437,0.001826,60939.0,60938.0,1.648609]
[1724138310647,0.001826,60939.0,60938.0,1.6847418]
[1724138311058,0.001826,60939.0,60938.0,1.320407]
[1724138311641,0.001826,60939.0,60938.0,1.237807]
[1724138311847,0.189526,60939.0,60938.0,0.026]
[1724138312054,0.418524,60939.0,60938.0,0.026]
[1724138312251,1.098918,60939.0,60938.0,0.026]
[1724138312452,0.987218,60939.0,60938.0,0.026]
[1724138312651,0.987218,60939.0,60938.0,0.012]
[1724138313153,0.492319,60936.0,60935.0,0.0008686]
[1724138313355,0.515319,60936.0,60935.0,0.0008686]
[1724138313762,0.843532,60936.0,60935.0,0.0008686]
[1724138314409,1.311845,60936.0,60935.0,0.0008686]
[1724138314783,1.311845,60936.0,60935.0,0.0028686]
[1724138314994,1.311845,60936.0,60935.0,0.0008686]
[1724138316382,1.316845,60936.0,60935.0,0.0008686]
[1724138316622,1.316845,60936.0,60935.0,0.0018686]
[1724138316623,1.000632,60936.0,60935.0,0.0018686]
[1724138317276,0.989632,60936.0,60935.0,0.0008686]
[1724138317493,0.998632,60936.0,60935.0,0.0018686]
[1724138318207,0.993632,60936.0,60935.0,0.0018686]
[1724138318428,0.985632,60936.0,60935.0,0.0008686]
[1724138319094,0.984632,60936.0,60935.0,0.0008686]
[1724138319353,0.985632,60936.0,60935.0,0.0008686]
[1724138319578,0.98728782,60936.0,60935.0,0.0008686]
[1724138319788,0.99228782,60936.0,60935.0,0.0008686]
[1724138320032,0.99128782,60936.0,60935.0,0.0008686]
[1724138320495,0.99228782,60936.0,60935.0,0.0008686]
[1724138320703,0.989632,60936.0,60935.0,0.0008686]
[1724138322551,0.99128782,60936.0,60935.0,0.0008686]
[1724138322802,0.849532,60936.0,60935.0,0.0008686]
[1724138326323,0.930632,60936.0,60935.0,0.0008686]
[1724138326558,0.992032,60936.0,60935.0,0.0008686]
[1724138326813,0.99468782,60936.0,60935.0,0.0008686]
[1724138327044,0.992032,60936.0,60935.0,0.0008686]
[1724138327293,0.99468782,60936.0,60935.0,0.0008686]
[1724138327536,0.99368782,60936.0,60935.0,0.0008686]
[1724138327766,1.32190082,60936.0,60935.0,0.0008686]
[1724138327944,1.320245,60936.0,60935.0,0.0008686]
[1724138328204,1.32190082,60936.0,60935.0,0.0008686]
[1724138329007,1.320245,60936.0,60935.0,0.0008686]
[1724138330421,1.32190082,60936.0,60935.0,0.0008686]
[1724138330802,1.320245,60936.0,60935.0,0.0008686]
[1724138331842,1.32290082,60936.0,60935.0,0.0008686]
[1724138332070,1.32190082,60936.0,60935.0,0.0008686]
[1724138332272,1.32290082,60936.0,60935.0,0.0008686]
[1724138332521,1.32190082,60936.0,60935.0,0.0008686]
[1724138332700,1.32290082,60936.0,60935.0,0.0008686]
[1724138332902,1.32190082,60936.0,60935.0,0.0008686]
[1724138334306,1.320245,60936.0,60935.0,0.0008686]
[1724138335714,1.648458,60936.0,60935.0,0.0008686]
[1724138336331,1.320245,60936.0,60935.0,0.0008686]
[1724138336896,1.649284,60936.0,60935.0,0.0008686]
[1724138338192,1.65193982,60936.0,60935.0,0.0008686]
[1724138338820,1.65093982,60936.0,60935.0,0.0008686]
[1724138339226,1.65193982,60936.0,60935.0,0.0008686]
[1724138339448,1.65093982,60936.0,60935.0,0.0008686]
[1724138340411,1.76283982,60936.0,60935.0,0.0008686]
[1724138340832,1.761184,60936.0,60935.0,0.0008686]
[1724138341031,1.861184,60936.0,60935.0,0.0008686]
[1724138342119,1.855184,60936.0,60935.0,0.0008686]
[1724138342545,1.855184,60936.0,60935.0,0.0018686]
[1724138342546,1.93671026,60936.0,60935.0,0.0018686]
[1724138342717,1.94971026,60936.0,60935.0,0.0028686]
[1724138343499,1.94371026,60936.0,60935.0,0.0018686]
[1724138344101,1.94636608,60936.0,60935.0,0.0018686]
[1724138344285,1.93336608,60936.0,60935.0,0.0008686]
[1724138344480,1.94736608,60936.0,60935.0,0.0008686]
[1724138344927,1.95536608,60936.0,60935.0,0.0018686]
[1724138345983,1.62715308,60936.0,60935.0,0.0018686]
[1724138346516,1.95536608,60936.0,60935.0,0.0018686]
[1724138346724,1.62715308,60936.0,60935.0,0.0018686]
[1724138347080,1.95536608,60936.0,60935.0,0.0018686]
[1724138347701,1.95436608,60936.0,60935.0,0.0018686]
[1724138348081,1.62449726,60936.0,60935.0,0.0018686]
[1724138348695,1.95271026,60936.0,60935.0,0.0018686]
[1724138349300,1.62715308,60936.0,60935.0,0.0018686]
[1724138350487,1.95536608,60936.0,60935.0,0.0018686]
[1724138350685,1.62715308,60936.0,60935.0,0.0018686]
[1724138350896,1.62615308,60936.0,60935.0,0.0018686]
[1724138351364,1.62449726,60936.0,60935.0,0.0018686]
[1724138352312,1.95536608,60936.0,60935.0,0.0018686]
[1724138352538,1.95436608,60936.0,60935.0,0.0018686]
[1724138352743,1.95271026,60936.0,60935.0,0.0018686]
[1724138354426,1.95536608,60936.0,60935.0,0.0018686]
[1724138354627,1.95436608,60936.0,60935.0,0.0018686]
[1724138355033,2.02011908,60936.0,60935.0,0.0018686]
[1724138355209,2.02111908,60936.0,60935.0,0.0018686]
[1724138355452,2.02011908,60936.0,60935.0,0.0018686]
[1724138355888,2.34867626,60936.0,60935.0,0.0018686]
[1724138356316,2.44602107,60936.0,60935.0,0.0018686]
[1724138356531,2.44767689,60936.0,60935.0,0.0018686]
[1724138357372,2.47201309,60936.0,60935.0,0.0018686]
[1724138357586,2.47035727,60936.0,60935.0,0.0018686]
[1724138357787,2.34867626,60936.0,60935.0,0.0018686]
[1724138358710,2.47060858,60936.0,60935.0,0.0018686]
[1724138359854,2.34867626,60936.0,60935.0,0.0018686]
[1724138362226,1.80794282,60932.0,60931.0,0.0822211]
[1724138362430,2.24822525,60932.0,60931.0,0.0822211]
[1724138362612,2.33492525,60932.0,60931.0,0.0822211]
[1724138362814,2.33326943,60932.0,60931.0,0.0822211]
[1724138362987,2.33492525,60932.0,60931.0,0.0822211]
[1724138363617,2.34192525,60932.0,60931.0,0.0832211]
[1724138363849,2.35226943,60932.0,60931.0,0.0842211]
[1724138364052,2.33292525,60932.0,60931.0,0.0602211]
[1724138364470,2.33126943,60932.0,60931.0,0.0602211]
[1724138364675,2.33292525,60932.0,60931.0,0.0602211]
[1724138365100,2.31226943,60932.0,60931.0,0.0582211]
[1724138365454,2.33426943,60932.0,60931.0,0.0602211]
[1724138365851,0.31108382,60928.0,60927.0,0.009097]
[1724138366053,0.50961008,60928.0,60927.0,0.009097]
[1724138366255,0.50961008,60928.0,60904.0,0.009097]
[1724138366256,0.63768782,60922.0,60905.0,0.0614]
[1724138366478,1.17787582,60922.0,60905.0,0.0614]
[1724138366695,2.18573982,60922.0,60905.0,0.0614]
[1724138366906,2.18573982,60922.0,60904.0,0.092297]
[1724138366907,1.21349682,60915.0,60904.0,0.009097]
[1724138367107,1.58256265,60915.0,60904.0,0.009097]
[1724138367258,1.91088865,60915.0,60904.0,0.009097]
[1724138367462,1.85832282,60915.0,60904.0,0.009097]
[1724138368174,1.86932282,60915.0,60904.0,0.009097]
[1724138368559,1.86832282,60915.0,60904.0,0.009097]
[1724138368771,1.86932282,60915.0,60904.0,0.009097]
[1724138368969,1.86832282,60915.0,60904.0,0.009097]
[1724138369197,1.87832282,60915.0,60904.0,0.009097]
[1724138369671,1.876667,60915.0,60904.0,0.009097]
[1724138369868,1.70272282,60915.0,60907.0,0.1407]
[1724138370066,1.81462282,60915.0,60907.0,0.1407]
[1724138370480,1.80362282,60915.0,60907.0,0.1407]
[1724138370878,1.81762282,60915.0,60907.0,0.1407]
[1724138371228,1.25979682,60915.0,60907.0,0.1407]
[1724138371428,1.27179682,60915.0,60914.0,0.090386]
[1724138371548,1.38369682,60915.0,60914.0,0.090386]
[1724138371959,1.37569682,60915.0,60914.0,0.090386]
[1724138372163,1.37569682,60915.0,60914.0,0.009086]
[1724138372612,1.54369682,60915.0,60914.0,0.009086]
[1724138373012,1.58069682,60915.0,60914.0,0.010086]
[1724138373364,1.56769682,60915.0,60914.0,0.010086]
[1724138373539,1.56869682,60915.0,60914.0,0.009086]
[1724138373763,1.56869682,60915.0,60914.0,0.010086]
[1724138373764,1.58169682,60915.0,60914.0,0.010086]
[1724138374003,1.56769682,60915.0,60914.0,0.010086]
[1724138374210,1.58169682,60915.0,60914.0,0.010086]
[1724138375017,1.56769682,60915.0,60914.0,0.010086]
[1724138375238,1.55469682,60915.0,60914.0,0.009086]
[1724138375799,1.55469682,60915.0,60914.0,0.074486]
[1724138376174,1.56469682,60915.0,60914.0,0.074486]
[1724138376543,1.56469682,60915.0,60914.0,0.009086]
[1724138376658,1.135715,60915.0,60914.0,0.009086]
[1724138376857,1.143715,60915.0,60914.0,0.009086]
[1724138377314,1.143715,60915.0,60914.0,0.085486]
[1724138377707,1.143715,60915.0,60914.0,0.09499685]
[1724138378512,0.487063,60915.0,60914.0,0.09499685]
[1724138379055,0.815389,60915.0,60914.0,0.09499685]
[1724138379335,0.815389,60915.0,60909.0,0.18417185]
[1724138379336,0.164169,60913.0,60909.0,0.18417185]
[1724138379546,0.187171,60912.0,60909.0,0.18417185]
[1724138379898,0.023,60912.0,60911.0,0.164173]
[1724138380101,0.023,60914.0,60913.0,0.164168]
[1724138380291,0.023,60914.0,60909.0,0.164178]
[1724138380485,0.164172,60912.0,60909.0,0.001]
[1724138380690,0.023,60911.0,60909.0,0.001]
[1724138381161,0.023,60911.0,60909.0,0.165178]
[1724138381684,0.023,60911.0,60910.0,0.164176]
[1724138381929,0.023,60912.0,60911.0,0.820867]
[1724138382223,0.023,60912.0,60911.0,0.97870591]
[1724138382435,0.023,60918.0,60913.0,0.001]
[1724138382674,0.164158,60917.0,60914.0,0.164165]
[1724138382908,0.023,60916.0,60915.0,0.1459]
[1724138383123,0.023,60916.0,60915.0,0.310063]
[1724138383351,0.023,60917.0,60915.0,0.32193478]
[1724138383605,0.023,60917.0,60915.0,0.15777178]
[1724138384074,0.023,60920.0,60916.0,0.32832]
[1724138384279,0.164148,60921.0,60916.0,0.32832]
[1724138384485,0.023,60920.0,60918.0,0.164154]
[1724138384745,0.023,60920.0,60919.0,0.1459]
[1724138384936,0.023,60923.0,60919.0,0.48600867]
[1724138385269,0.023,60923.0,60921.0,0.164145]
[1724138385662,0.023,60923.0,60922.0,0.01175434]
[1724138386506,0.023,60923.0,60922.0,0.17589834]
[1724138386715,0.023,60924.0,60922.0,0.17589834]
[1724138387137,0.009,60923.0,60922.0,0.17589834]
[1724138387338,0.032,60923.0,60922.0,0.50418634]
[1724138387541,0.045,60923.0,60922.0,0.01175434]
[1724138387726,0.023,60923.0,60922.0,0.17589834]
[1724138387953,0.18714,60924.0,60922.0,0.01175434]
[1724138388162,0.20114,60924.0,60922.0,0.01175434]
[1724138388367,0.20114,60924.0,60920.0,0.164148]
[1724138388368,0.164141,60923.0,60920.0,0.164148]
[1724138388544,0.023,60922.0,60921.0,0.164146]
[1724138388833,0.013,60923.0,60921.0,0.164146]
[1724138389037,0.023,60922.0,60921.0,0.17591712]
[1724138389468,0.197139,60924.0,60921.0,0.17591712]
[1724138389673,0.033,60924.0,60921.0,0.01177112]
[1724138389885,0.023,60924.0,60921.0,0.01177112]
[1724138390094,0.009,60923.0,60921.0,0.17691612]
[1724138390319,0.023,60922.0,60921.0,0.17691612]
[1724138390728,0.023,60922.0,60921.0,0.17591612]
[1724138390933,0.023,60923.0,60921.0,0.17691612]
[1724138391555,0.023,60923.0,60921.0,0.01277112]
[1724138391775,0.023,60923.0,60922.0,0.492432]
[1724138391980,0.023,60923.0,60922.0,0.96242]
[1724138392188,0.023,60923.0,60922.0,0.97417434]
[1724138392623,0.013,60923.0,60922.0,0.97417434]
[1724138392831,0.036,60923.0,60922.0,0.97417434]
[1724138393476,0.036,60923.0,60922.0,0.97817434]
[1724138393939,0.023,60923.0,60922.0,0.97817434]
[1724138394172,0.02565582,60927.0,60924.0,0.164137]
[1724138394624,0.18978682,60927.0,60925.0,0.01170401]
[1724138395032,0.02565582,60927.0,60925.0,0.17583901]
[1724138395209,0.00265582,60927.0,60925.0,0.01170401]
[1724138395411,0.00265582,60927.0,60925.0,0.17583901]
[1724138395620,0.00365582,60927.0,60925.0,0.17583901]
[1724138395820,0.00265582,60927.0,60925.0,0.17583901]
[1724138396018,0.023,60926.0,60925.0,0.17583901]
[1724138396532,0.02565582,60927.0,60925.0,0.01170401]
[1724138396691,0.02565582,60927.0,60925.0,0.17583801]
[1724138396912,0.023,60927.0,60926.0,0.164133]
[1724138397089,0.023,60928.0,60926.0,0.164133]
[1724138397300,0.023,60928.0,60926.0,0.17582024]
[1724138397500,0.001,60927.0,60926.0,0.17582024]
[1724138398154,0.023,60928.0,60926.0,0.17882024]
[1724138398533,0.025,60928.0,60926.0,0.17882024]
[1724138398777,0.023,60928.0,60926.0,0.17882024]
[1724138398924,0.023,60928.0,60927.0,0.16413]
[1724138399106,0.164121,60931.0,60927.0,0.164128]
[1724138399312,0.023,60930.0,60928.0,0.164127]
[1724138399730,0.023,60930.0,60929.0,0.01163692]
[1724138400379,0.187122,60930.0,60929.0,0.01163692]
[1724138400607,0.299022,60930.0,60927.0,0.16413]
[1724138400827,0.299022,60930.0,60929.0,0.01163692]
[1724138401193,0.299022,60930.0,60928.0,0.002]
[1724138401445,0.299022,60930.0,60929.0,0.01163692]
[1724138401658,0.299022,60930.0,60927.0,0.16413]
[1724138401829,0.1349,60930.0,60929.0,0.01163692]
[1724138401981,0.1369,60930.0,60928.0,0.17578069]
[1724138402197,0.1369,60930.0,60929.0,0.01163692]
[1724138402800,0.1369,60930.0,60929.0,0.17576192]
[1724138403011,0.025,60930.0,60929.0,0.01163692]
[1724138403239,0.1369,60930.0,60929.0,0.01163692]
[1724138403439,0.1369,60930.0,60928.0,0.164127]
[1724138403863,0.1369,60930.0,60929.0,0.002]
[1724138404066,0.301022,60930.0,60929.0,0.002]
[1724138404270,0.301022,60930.0,60915.0,0.0666]
[1724138404271,0.61160082,60930.0,60915.0,0.0666]
[1724138404477,0.61160082,60930.0,60917.0,0.51318528]
[1724138404478,0.1119,60918.0,60917.0,0.51318528]
[1724138404916,0.1349,60918.0,60917.0,0.51318596]
[1724138405779,0.1359,60918.0,60917.0,0.51418596]
[1724138405954,0.024,60918.0,60917.0,0.51418587]
[1724138406112,0.001,60918.0,60917.0,0.51418587]
[1724138406442,0.002,60918.0,60917.0,0.8633391]
[1724138406642,0.002,60918.0,60917.0,1.0060391]
[1724138406857,0.002,60918.0,60917.0,1.3343541]
[1724138407403,0.002,60918.0,60917.0,1.33469756]
[1724138408032,0.002,60918.0,60917.0,1.3705014]
[1724138409013,0.002,60918.0,60917.0,1.3343541]
[1724138409213,0.002,60918.0,60917.0,1.3705014]
[1724138409409,0.002,60918.0,60917.0,1.3343541]
[1724138409623,0.002,60918.0,60917.0,2.65115532]
[1724138409984,0.002,60918.0,60917.0,1.80115532]
[1724138410734,0.000827,60920.0,60919.0,1.15140746]
[1724138410933,0.000827,60920.0,60919.0,1.34686609]
[1724138411083,0.000827,60920.0,60919.0,1.35867076]
[1724138411296,0.000827,60920.0,60919.0,1.68697476]
[1724138411684,0.000827,60920.0,60919.0,1.6856313]
[1724138411889,0.000827,60920.0,60919.0,1.68697476]
[1724138412103,0.000827,60920.0,60919.0,1.68797476]
[1724138412267,0.001827,60920.0,60919.0,1.68797476]
[1724138412752,0.002827,60920.0,60919.0,1.70197476]
[1724138413487,0.002827,60920.0,60919.0,1.3713273]
[1724138413713,0.002827,60920.0,60919.0,0.9044233]
[1724138414000,0.002827,60920.0,60919.0,0.86827781]
[1724138414232,0.002827,60920.0,60919.0,0.9044233]
[1724138414467,0.002827,60920.0,60919.0,0.84756467]
[1724138414687,0.002827,60920.0,60919.0,0.90442325]
[1724138414959,0.002827,60920.0,60919.0,0.84756467]
[1724138415223,0.002827,60920.0,60919.0,0.8682778]
[1724138415678,0.002827,60920.0,60919.0,0.90442326]
[1724138415921,0.002827,60920.0,60919.0,0.8682778]
[1724138416413,0.002827,60920.0,60919.0,0.90442326]
[1724138416613,0.002827,60920.0,60919.0,0.8682778]
[1724138417113,0.002827,60920.0,60919.0,0.90442326]
[1724138417829,0.002827,60920.0,60919.0,0.8682778]
[1724138418764,0.002827,60920.0,60919.0,0.86827964]
[1724138419279,0.079127,60920.0,60919.0,0.21167164]
[1724138419774,0.102127,60920.0,60919.0,0.21167164]
[1724138420440,0.100127,60920.0,60919.0,0.03251964]
[1724138420666,0.100127,60920.0,60919.0,0.04151964]
[1724138420667,0.101127,60920.0,60919.0,0.04151964]
[1724138420900,0.102127,60920.0,60919.0,0.04751964]
[1724138421604,0.002827,60920.0,60919.0,1.37673451]
[1724138421835,0.002827,60920.0,60919.0,1.37707797]
[1724138422058,0.002827,60920.0,60919.0,1.37673451]
[1724138422278,0.002827,60920.0,60919.0,1.01227964]
[1724138422501,0.002827,60920.0,60919.0,0.21167164]
[1724138422502,0.085127,60920.0,60919.0,0.21167164]
[1724138422765,0.085127,60920.0,60919.0,0.53997564]
[1724138422956,0.085127,60920.0,60919.0,0.53997618]
[1724138422957,0.108127,60920.0,60919.0,0.53997618]
[1724138425844,0.025827,60920.0,60919.0,0.86828018]
[1724138426108,0.002827,60920.0,60919.0,1.32156867]
[1724138426300,0.002827,60920.0,60919.0,1.34228413]
[1724138426802,0.002827,60920.0,60919.0,1.37843123]
[1724138427260,0.002827,60920.0,60919.0,1.3784293]
[1724138427751,0.002827,60920.0,60919.0,1.37842917]
[1724138427971,0.002827,60920.0,60919.0,1.37842906]
[1724138430219,0.002827,60920.0,60919.0,1.32156867]
[1724138430466,0.002827,60920.0,60919.0,1.37842979]
[1724138430682,0.002827,60920.0,60919.0,1.34228266]
[1724138431857,0.002827,60920.0,60919.0,1.37877333]
[1724138432061,0.002827,60920.0,60919.0,1.34262612]
[1724138432255,0.002827,60920.0,60919.0,1.42757163]
[1724138433297,0.002827,60920.0,60919.0,1.34228266]
[1724138433910,0.002827,60920.0,60919.0,1.42757169]
[1724138434558,0.002827,60920.0,60919.0,1.42757171]
[1724138435496,0.002827,60920.0,60919.0,1.81604584]
[1724138435708,0.002827,60920.0,60919.0,1.37877326]
[1724138436146,0.002827,60920.0,60919.0,1.3784298]
[1724138436357,0.002827,60920.0,60919.0,1.81604856]
[1724138436607,0.002827,60920.0,60919.0,1.81639202]
[1724138437352,0.002827,60920.0,60919.0,2.95298315]
[1724138437591,0.000827,60930.0,60929.0,1.28861846]
[1724138437843,0.000827,60930.0,60929.0,1.78284357]
[1724138438046,0.000827,60930.0,60929.0,1.70904202]
[1724138438254,0.000827,60930.0,60929.0,1.80778536]
[1724138438466,0.000827,60930.0,60929.0,1.41890976]
[1724138438681,0.000827,60930.0,60929.0,1.35817249]
[1724138438876,0.000827,60930.0,60929.0,1.34513613]
[1724138439088,0.000827,60930.0,60929.0,1.41890976]
[1724138439301,0.000827,60930.0,60929.0,1.34513613]
[1724138439557,0.002827,60930.0,60929.0,1.34613613]
[1724138439765,0.002827,60930.0,60929.0,1.41990976]
[1724138439980,0.002827,60930.0,60929.0,2.03720822]
[1724138440204,0.000827,60930.0,60929.0,2.03755168]
[1724138440415,0.000827,60930.0,60929.0,2.13585996]
[1724138440666,0.000827,60930.0,60929.0,2.13585512]
[1724138441139,0.001827,60930.0,60929.0,2.14984549]
[1724138441391,0.001827,60930.0,60929.0,2.05153721]
[1724138441625,0.002827,60930.0,60929.0,2.15253721]
[1724138441854,0.002827,60930.0,60929.0,2.25084549]
[1724138442099,0.001827,60930.0,60929.0,2.24984549]
[1724138442333,0.001827,60930.0,60929.0,2.15119375]
[1724138442564,0.001827,60930.0,60929.0,2.15152648]
[1724138442819,0.001827,60930.0,60929.0,2.15352648]
[1724138443291,0.001827,60930.0,60929.0,2.95352648]
[1724138443531,0.001827,60930.0,60929.0,3.07629716]
[1724138443759,0.001827,60930.0,60929.0,2.95350907]
[1724138444490,0.001827,60930.0,60929.0,3.07626137]
[1724138444967,0.001827,60930.0,60929.0,3.28175907]
[1724138445246,0.001827,60930.0,60929.0,3.61000907]
[1724138445522,0.000826,60938.0,60935.0,1.47932446]
[1724138445748,0.000826,60938.0,60937.0,1.292224]
[1724138445981,0.000826,60938.0,60937.0,3.35061863]
[1724138446214,0.000826,60938.0,60937.0,5.17748217]
[1724138446466,0.000826,60938.0,60937.0,5.12063895]
[1724138446729,0.000826,60938.0,60937.0,5.17881118]
[1724138446962,0.000826,60938.0,60937.0,5.12198241]
[1724138447236,0.000826,60938.0,60937.0,5.17881081]
[1724138447491,0.000826,60938.0,60937.0,5.18881081]
[1724138448599,0.000826,60938.0,60937.0,5.24628322]
[1724138449234,0.001826,60938.0,60937.0,5.24628322]
[1724138449447,0.001826,60938.0,60937.0,5.3112322]
[1724138449910,0.001826,60938.0,60937.0,5.32101893]
[1724138450354,0.001826,60938.0,60937.0,5.37849134]